bitfinex/quotes_ETHUSD_20260109
["timestamp","ask_amount","ask_price","bid_price","bid_amount"]
[1767981981161,0.90227336,3117.6,3117.0,4.12793753]
[1767981981363,1.80227336,3117.8,3117.0,7.33615055]
[1767981981733,0.90227336,3117.7,3117.0,4.12793753]
[1767981982041,0.90227336,3117.7,3117.1,0.252]
[1767981982262,4.12344548,3117.8,3117.0,0.25280328]
[1767981982263,0.90227336,3117.5,3117.0,0.25280328]
[1767981983360,0.90227336,3117.5,3117.0,0.00080328]
[1767981983959,0.91909612,3117.4,3116.6,3.46060102]
[1767981984260,0.91909612,3117.4,3116.6,0.252]
[1767981984979,0.91909612,3117.4,3116.4,3.20957739]
[1767981985164,0.90227336,3117.1,3116.5,0.253]
[1767981985360,0.9,3117.8,3117.0,0.95937508]
[1767981985586,0.00080216,3118.0,3117.1,1.21057172]
[1767981985764,0.00080216,3118.0,3117.2,0.95857172]
[1767981985967,0.90307552,3118.0,3117.2,6.41601436]
[1767981986375,0.90307552,3118.0,3117.3,0.66680144]
[1767981986591,0.90227336,3117.8,3117.3,0.252]
[1767981986762,0.90227336,3117.6,3117.0,0.00080336]
[1767981988401,0.90227336,3117.4,3117.0,0.00080336]
[1767981988792,0.91829284,3117.3,3117.0,0.00080336]
[1767981989951,0.01601948,3117.3,3117.0,0.00080336]
[1767981990784,0.91829284,3117.1,3117.0,0.00080336]
[1767981990993,0.91829284,3117.1,3116.5,0.001]
[1767981991365,0.01601948,3116.9,3116.5,0.001]
[1767981991764,0.91829284,3116.7,3116.5,0.001]
[1767981992205,0.91829284,3116.7,3115.9,0.001]
[1767981992511,0.01601948,3116.7,3115.9,4.61099639]
[1767981993281,0.01601948,3116.7,3115.9,3.65242467]
[1767981993711,3.22455342,3116.7,3115.9,3.65242467]
[1767981994211,0.92789681,3116.5,3115.9,0.001]
[1767981994612,0.01601948,3116.5,3115.9,0.001]
[1767981995418,0.92789681,3116.5,3115.9,0.001]
[1767981997423,0.91187733,3116.5,3115.9,0.001]
[1767981998389,0.92789681,3116.4,3115.9,0.001]
[1767981998591,0.90987734,3116.3,3115.9,0.001]
[1767981998818,0.91187733,3116.1,3115.9,0.001]
[1767981999207,0.91187733,3116.3,3115.9,0.001]
[1767981999517,0.01601948,3116.4,3115.9,0.001]
[1767982000123,4.13663299,3116.5,3115.9,0.001]
[1767982000301,4.89795071,3116.5,3115.9,0.001]
[1767982000501,4.89795071,3116.5,3116.2,0.001]
[1767982000703,0.01601948,3116.3,3116.2,0.001]
[1767982003037,0.01601948,3116.3,3115.9,0.001]
[1767982003210,4.13683048,3116.3,3115.9,0.001]
[1767982003410,0.91187733,3116.2,3115.9,0.001]
[1767982003612,0.01601948,3116.1,3115.9,0.001]
[1767982003818,3.96111809,3116.3,3115.9,0.001]
[1767982003819,0.75218442,3116.3,3115.9,0.001]
[1767982006107,0.01601948,3116.3,3115.9,0.001]
[1767982008258,3.22457046,3116.7,3115.9,0.91578317]
[1767982008457,0.01601948,3116.7,3115.9,0.91578317]
[1767982008639,0.9,3116.4,3115.9,0.91578317]
[1767982008839,0.89800001,3116.4,3116.1,0.94328019]
[1767982010654,0.89800001,3116.4,3115.9,0.94428019]
[1767982010861,0.89800001,3116.4,3115.9,0.001]
[1767982011758,4.1069053,3116.4,3115.9,0.001]
[1767982011960,4.93551761,3116.4,3115.9,0.001]
[1767982012149,4.93551761,3116.4,3116.2,0.001]
[1767982012455,0.01601948,3116.3,3116.2,0.001]
[1767982013960,0.89800001,3116.4,3116.2,0.001]
[1767982015472,0.89800001,3116.4,3116.2,0.94428019]
[1767982015842,0.00080272,3116.8,3116.2,0.94428019]
[1767982016373,0.00080272,3116.8,3116.3,4.15221386]
[1767982016582,0.00080272,3116.8,3116.4,0.73622458]
[1767982020358,0.00080272,3116.8,3116.4,3.94505283]
[1767982020563,0.00080272,3116.8,3116.4,1.67950477]
[1767982020746,0.00080272,3116.8,3116.4,4.88832689]
[1767982020945,0.00080272,3116.8,3116.4,1.67950477]
[1767982021149,0.00080272,3116.8,3116.5,0.48883852]
[1767982021544,0.00080336,3117.4,3116.6,0.94328019]
[1767982022602,0.00080336,3117.4,3116.8,0.94328019]
[1767982023109,0.00080336,3117.4,3117.0,0.93666914]
[1767982023511,0.00080336,3117.4,3116.8,4.14504371]
[1767982023811,0.00080336,3117.4,3116.9,0.43970437]
[1767982024398,0.002,3117.1,3116.9,0.43970437]
[1767982024591,0.002,3117.1,3116.7,0.252]
[1767982024809,0.95937601,3117.1,3116.4,0.0008028]
[1767982025010,0.95737601,3116.9,3116.4,0.0008028]
[1767982025311,0.01601948,3116.8,3116.4,0.0008028]
[1767982028018,0.002,3117.1,3116.4,0.93747194]
[1767982028812,0.002,3117.1,3116.6,0.93666914]
[1767982029418,0.002,3117.1,3116.6,7.35382826]
[1767982029621,0.002,3117.1,3116.5,0.252]
[1767982029622,0.002,3117.1,3116.7,0.93666914]
[1767982029921,0.97539549,3117.1,3116.4,0.2528028]
[1767982030089,0.95737601,3116.8,3116.4,0.0008028]
[1767982030419,0.97339549,3116.7,3116.4,0.0008028]
[1767982030823,0.01601948,3116.7,3116.4,0.0008028]
[1767982031322,0.97339549,3116.5,3115.9,0.001]
[1767982031621,4.18215333,3116.5,3115.9,0.001]
[1767982031787,0.41821533,3116.4,3115.9,0.001]
[1767982031988,0.01601948,3116.3,3115.9,0.001]
[1767982033617,0.97339549,3116.3,3115.9,0.001]
[1767982033821,0.01601948,3116.1,3115.9,0.001]
[1767982035919,3.22517009,3116.1,3115.9,0.001]
[1767982036425,3.2088307,3116.4,3115.9,0.001]
[1767982036618,0.65937898,3116.3,3115.9,0.001]
[1767982037028,0.6433595,3116.3,3115.9,0.001]
[1767982037278,0.01601948,3116.7,3115.9,0.001]
[1767982037431,3.22459293,3116.7,3115.9,0.001]
[1767982037726,7.39054239,3116.7,3115.9,0.001]
[1767982038102,7.39054239,3116.7,3116.2,0.001]
[1767982038103,4.18196894,3116.7,3116.2,0.001]
[1767982040294,7.39054239,3116.7,3116.2,0.001]
[1767982040625,8.15647886,3116.7,3116.2,0.001]
[1767982040828,4.94790541,3116.7,3116.2,0.001]
[1767982042737,0.01601948,3116.7,3116.2,0.001]
[1767982042923,0.01601948,3116.7,3116.2,0.93766914]
[1767982043243,0.01601948,3116.7,3116.2,0.001]
[1767982043646,3.22454468,3116.7,3116.2,0.001]
[1767982044021,0.01601948,3116.7,3116.2,0.001]
[1767982044948,3.22457356,3116.7,3116.2,0.001]
[1767982046130,3.22459204,3116.7,3116.2,0.001]
[1767982046850,0.01601948,3116.7,3116.2,0.001]
[1767982047426,3.22454995,3116.7,3116.2,0.001]
[1767982047946,0.2528028,3116.8,3116.2,0.001]
[1767982047947,3.46130932,3116.8,3116.2,0.001]
[1767982048350,0.0008028,3116.8,3116.2,1.35235917]
[1767982048532,0.0008028,3116.8,3116.3,0.93666914]
[1767982049033,3.20923234,3116.8,3116.3,0.93666914]
[1767982049216,0.0008028,3116.8,3116.3,0.93666914]
[1767982049953,0.002,3116.5,3116.3,0.93666914]
[1767982050152,0.002,3116.5,3116.3,1.39281859]
[1767982051030,0.002,3116.5,3116.2,0.001]
[1767982051351,0.97339549,3116.4,3115.9,0.001]
[1767982052550,4.18230918,3116.4,3115.9,0.001]
[1767982053979,0.95737601,3116.4,3115.9,0.001]
[1767982054257,0.002,3116.5,3115.9,0.95437189]
[1767982054422,0.002,3116.5,3116.0,4.1626145]
[1767982055024,0.002,3116.5,3116.0,4.8999174]
[1767982055343,0.002,3116.5,3116.1,0.95337189]
[1767982055552,0.002,3116.5,3115.9,0.001]
[1767982056977,0.002,3116.5,3115.9,0.95437189]
[1767982057647,0.002,3116.5,3115.9,0.001]
[1767982057836,1.00206436,3116.5,3115.9,0.001]
[1767982058038,1.00006436,3116.3,3115.5,0.25282504]
[1767982058471,0.01601948,3116.1,3115.5,0.25282504]
[1767982058670,0.75942769,3116.1,3115.5,0.00082504]
[1767982058841,0.98404488,3116.0,3115.5,0.00082504]
[1767982059578,0.74340821,3116.1,3115.5,0.00082504]
[1767982059737,3.22497771,3116.3,3115.5,0.00082504]
[1767982060074,0.252,3116.2,3115.5,0.00082504]
[1767982060570,0.252,3116.2,3115.5,3.21049951]
[1767982060773,0.252,3116.2,3115.5,0.00082504]
[1767982060977,3.46105796,3116.2,3115.5,0.00082504]
[1767982061178,3.47707744,3116.2,3115.5,0.00082504]
[1767982061346,4.37707744,3116.2,3115.5,0.00082504]
[1767982061967,1.16801948,3116.2,3115.5,0.00082504]
[1767982062170,1.16801948,3116.2,3115.8,0.001]
[1767982062356,1.70412332,3116.2,3115.8,0.001]
[1767982062557,1.70612332,3116.2,3115.8,0.001]
[1767982063481,4.91516155,3116.2,3115.8,0.001]
[1767982064184,1.70612332,3116.2,3115.8,0.001]
[1767982065190,4.91516773,3116.2,3115.8,0.001]
[1767982065548,0.01601948,3116.0,3115.8,0.001]
[1767982065751,1.00006436,3116.0,3115.8,0.001]
[1767982066352,1.00006436,3116.0,3115.5,0.00082504]
[1767982066589,1.00006436,3115.6,3115.1,0.001]
[1767982066943,0.01601948,3115.6,3115.1,0.001]
[1767982067183,0.0008028,3115.8,3115.3,4.1633068]
[1767982067381,0.0008028,3115.8,3115.4,0.95337189]
[1767982068554,0.0008028,3115.8,3115.3,3.20993491]
[1767982069552,0.0008028,3115.8,3115.2,4.13241862]
[1767982069752,0.0008028,3115.8,3115.3,0.73435584]
[1767982070057,0.0008028,3115.8,3115.3,0.98635584]
[1767982070848,0.01601948,3115.7,3115.1,0.001]
[1767982072299,0.0008028,3115.8,3115.1,0.92335186]
[1767982074357,0.0008028,3115.8,3115.3,0.92235186]
[1767982074562,0.27001948,3116.2,3115.2,6.42013352]
[1767982074563,0.254,3116.2,3115.5,0.00082586]
[1767982074819,0.254,3116.2,3115.5,0.01223079]
[1767982075082,0.254,3116.2,3115.5,0.00082586]
[1767982075486,0.002,3116.2,3115.5,0.00082586]
[1767982075860,0.002,3116.5,3115.7,0.92235186]
[1767982076054,0.002,3116.5,3115.9,0.92235186]
[1767982076380,0.002,3116.5,3115.9,1.17435186]
[1767982076586,0.002,3116.5,3116.0,3.20924261]
[1767982080810,0.002,3116.5,3115.8,3.85842714]
[1767982080811,0.01601948,3116.4,3115.8,0.64899835]
[1767982080997,0.01601948,3116.4,3115.6,3.20965464]
[1767982081780,0.002,3116.5,3115.7,0.92235186]
[1767982082985,0.0028028,3116.8,3116.0,0.99088644]
[1767982083315,0.0028028,3116.8,3116.1,3.20913962]
[1767982084701,0.0028028,3116.8,3116.0,4.45209122]
[1767982085010,0.0028028,3116.8,3116.0,7.11565651]
[1767982085417,0.0028028,3116.8,3116.0,3.9064139]
[1767982085604,0.0028028,3116.8,3116.0,7.11565651]
[1767982085914,0.0028028,3116.8,3116.0,3.9064139]
[1767982089615,0.0028028,3116.8,3116.0,0.44520912]
[1767982089616,0.93229789,3116.5,3116.0,0.44520912]
[1767982089848,0.93229789,3116.5,3115.8,0.252]
[1767982089992,0.93229789,3116.5,3115.5,0.00082586]
[1767982089993,0.94631737,3116.3,3115.5,0.00082586]
[1767982090517,1.19831737,3116.4,3115.5,0.03292343]
[1767982090714,1.19831737,3116.4,3115.5,0.64628551]
[1767982091095,0.01601948,3116.2,3115.5,0.64628551]
[1767982092139,3.22511603,3116.2,3115.5,0.64628551]
[1767982092298,0.93029789,3116.1,3115.5,0.00082586]
[1767982093999,0.93029789,3116.1,3115.5,3.21055813]
[1767982094199,0.93029789,3116.1,3115.5,0.00082586]
[1767982094517,0.01601948,3116.2,3115.5,0.00082586]
[1767982094718,3.2250763,3116.2,3115.5,0.00082586]
[1767982095442,4.15537419,3116.2,3115.5,0.00082586]
[1767982095729,0.93029789,3116.1,3115.5,0.00082586]
[1767982096916,0.94631737,3116.0,3115.5,0.00082586]
[1767982098613,0.93029789,3115.7,3115.5,0.00082586]
[1767982098826,0.94631737,3115.6,3115.4,0.00180288]
[1767982098991,0.94631737,3115.6,3115.1,0.001]
[1767982101033,0.93029789,3115.5,3115.1,0.001]
[1767982101331,0.93029789,3115.4,3115.1,0.001]
[1767982101504,0.9282979,3115.4,3115.1,0.001]
[1767982101914,0.73655701,3115.5,3115.1,0.001]
[1767982102408,0.75257649,3115.5,3115.1,0.001]
[1767982102818,1.68287438,3115.5,3115.1,0.001]
[1767982103021,0.81022406,3115.4,3115.1,0.001]
[1767982103922,0.01601948,3115.3,3115.1,0.001]
[1767982104535,1.74052195,3115.4,3115.1,0.001]
[1767982105040,0.01601948,3115.3,3115.1,0.001]
[1767982110245,0.94631737,3115.3,3115.1,0.001]
[1767982110418,0.93029789,3115.2,3115.1,0.001]
[1767982110810,0.93029789,3115.2,3114.5,0.00080224]
[1767982111036,0.93029789,3114.9,3114.5,0.00080224]
[1767982111233,0.01601948,3115.0,3114.5,0.00080224]
[1767982111234,0.93029789,3114.7,3114.5,0.00080224]
[1767982111435,0.01601948,3114.8,3114.5,0.00080224]
[1767982111945,0.94631737,3114.8,3114.5,0.00080224]
[1767982113134,0.94631737,3114.8,3113.9,0.00080208]
[1767982113135,0.95470578,3114.6,3113.9,0.00080208]
[1767982113645,0.95470578,3114.6,3113.9,3.21213889]
[1767982114549,0.95470578,3114.6,3113.9,0.00080208]
[1767982115446,4.1653963,3114.6,3113.9,0.00080208]
[1767982115661,0.9386863,3114.5,3113.9,0.00080208]
[1767982116183,0.95470578,3114.4,3113.9,0.00080208]
[1767982116982,4.16559746,3114.4,3113.9,0.00080208]
[1767982117284,0.01601948,3114.4,3113.9,0.00080208]
[1767982117442,0.93948854,3114.9,3113.9,0.95808181]
[1767982118744,0.93948854,3114.9,3114.0,3.21130378]
[1767982118953,0.93948854,3114.9,3114.1,0.73807016]
[1767982119154,0.9386863,3114.8,3114.1,0.73807016]
[1767982119358,0.9386863,3114.8,3113.9,4.16947949]
[1767982119965,0.9386863,3114.8,3113.9,3.46419976]
[1767982120160,0.9386863,3114.8,3113.9,6.67560667]
[1767982120374,0.9386863,3114.8,3113.9,4.42147949]
[1767982120577,0.9386863,3114.8,3113.9,3.46419976]
[1767982121280,0.9386863,3114.8,3113.9,7.43889828]
[1767982121579,0.95470578,3114.7,3113.9,0.76409369]
[1767982121774,0.95470578,3114.7,3113.9,0.00080208]
[1767982122279,0.95470578,3114.7,3113.9,3.21215358]
[1767982122448,0.95470578,3114.7,3113.9,4.16943331]
[1767982123285,0.95470578,3114.5,3113.9,0.00080208]
[1767982123447,0.95270579,3114.5,3113.9,3.21220436]
[1767982123642,0.95270579,3114.5,3113.9,0.00080208]
[1767982123847,0.9386863,3114.4,3113.9,0.00080208]
[1767982124267,0.9386863,3114.4,3113.9,3.2122086]
[1767982124473,0.9386863,3114.4,3113.9,0.00080208]
[1767982125382,4.14958652,3114.4,3114.2,0.001]
[1767982125583,0.9386863,3114.4,3114.2,0.001]
[1767982125782,0.9386863,3114.3,3113.5,0.95727973]
[1767982125970,0.01682156,3114.3,3113.6,1.20927973]
[1767982126170,0.01682156,3114.3,3113.6,4.42099213]
[1767982126483,0.01682156,3114.3,3113.6,1.20927973]
[1767982126783,0.95470578,3113.9,3113.3,0.0008024]
[1767982127087,0.95470578,3113.7,3113.3,0.0008024]
[1767982127250,0.95470578,3113.5,3113.1,0.001]
[1767982127452,6.52964061,3113.5,3113.1,0.001]
[1767982128074,6.52964061,3113.5,3112.3,0.00080184]
[1767982128075,0.95470578,3113.3,3112.3,0.95808157]
[1767982128275,0.01601948,3113.1,3112.3,0.95808157]
[1767982128587,0.67058549,3113.1,3112.3,4.17105402]
[1767982129088,0.67058549,3113.1,3112.3,0.95808157]
[1767982129388,3.88284084,3113.1,3112.3,0.95808157]
[1767982129583,4.84414667,3113.1,3112.3,0.00080184]
[1767982129772,0.96130583,3113.0,3112.3,0.00080184]
[1767982129977,0.97732531,3112.9,3112.3,0.00080184]
[1767982130487,0.252,3113.3,3112.5,0.91334936]
[1767982130781,0.96130583,3113.5,3112.5,0.91334936]
[1767982130782,0.97732531,3113.5,3112.5,0.91334936]
[1767982130982,0.01601948,3113.5,3112.5,0.91334936]
[1767982131685,0.01601948,3113.5,3112.7,0.91334936]
[1767982134394,0.01601948,3113.5,3112.7,4.12594108]
[1767982134562,0.01601948,3113.5,3112.8,0.66010191]
[1767982135094,0.0008024,3113.7,3112.9,0.91334936]
[1767982136796,0.0008024,3113.7,3113.1,0.91334936]
[1767982136992,0.26882156,3114.3,3113.3,0.91415184]
[1767982137297,0.01601948,3114.1,3113.3,0.91415184]
[1767982137672,0.97732531,3114.1,3113.3,0.00080248]
[1767982139093,0.97732531,3114.1,3112.8,0.66110191]
[1767982139094,0.97812779,3113.7,3112.8,0.66110191]
[1767982139292,0.96130583,3113.4,3112.8,0.001]
[1767982139463,0.01601948,3113.3,3112.8,0.001]
[1767982140569,0.01601948,3113.5,3112.8,0.001]
[1767982140781,0.01601948,3113.5,3112.9,3.212389]
[1767982141004,0.01601948,3113.5,3112.8,0.001]
[1767982141170,0.01601948,3113.5,3112.8,0.64364964]
[1767982141513,4.18915253,3113.5,3112.8,0.64364964]
[1767982141673,0.97732531,3113.5,3112.8,0.001]
[1767982143882,0.97732531,3113.5,3112.6,7.33020794]
[1767982146308,0.97732531,3113.5,3112.6,3.16374818]
[1767982146510,0.9677602,3113.2,3112.6,3.16374818]
[1767982146686,0.96576021,3113.2,3112.6,3.50540477]
[1767982148289,0.9677602,3113.0,3112.4,0.00081769]
[1767982148967,0.9677602,3113.0,3112.5,3.21279754]
[1767982149190,0.9677602,3113.2,3112.8,0.001]
[1767982150600,0.01601948,3113.1,3112.8,0.001]
[1767982151975,0.01601948,3113.3,3112.8,0.001]
[1767982152217,1.30818326,3113.3,3112.8,0.001]
[1767982153422,0.00080248,3113.7,3112.8,0.95471158]
[1767982153574,0.00080248,3113.7,3112.9,0.95371158]
[1767982153793,0.00080248,3113.7,3112.9,0.98583596]
[1767982154325,0.00080248,3113.7,3113.0,4.16604694]
[1767982154495,0.00080248,3113.7,3113.0,3.21233536]
[1767982155026,0.98377968,3113.6,3112.8,0.001]
[1767982155193,0.98377968,3113.4,3112.8,0.001]
[1767982155398,0.01601948,3113.2,3112.8,0.001]
[1767982156091,0.98377968,3113.2,3112.8,0.001]
[1767982156341,0.98377968,3113.2,3112.4,0.00081769]
[1767982156342,0.9677602,3112.9,3112.4,0.00081769]
[1767982156627,0.96576021,3112.9,3112.4,0.00081769]
[1767982157924,0.01601948,3112.6,3112.4,0.00081769]
[1767982159391,4.18041266,3112.7,3112.4,0.00081769]
[1767982159622,0.01601948,3112.6,3112.4,0.00081769]
[1767982160625,0.9677602,3112.5,3111.9,0.001]
[1767982160824,0.01601948,3112.6,3111.9,0.001]
[1767982161291,0.98377968,3112.6,3111.9,0.001]
[1767982161492,1.40519077,3112.6,3111.9,0.001]
[1767982163246,0.9677602,3112.5,3111.9,0.001]
[1767982163450,0.96576021,3112.5,3111.9,0.001]
[1767982163615,0.43743057,3112.6,3111.9,0.001]
[1767982163920,1.40519077,3112.6,3111.9,0.001]
[1767982164716,0.9677602,3112.4,3111.9,0.001]
[1767982168447,0.9677602,3112.3,3111.9,0.001]
[1767982168602,0.01601948,3112.4,3111.9,0.001]
[1767982168931,3.48081231,3112.6,3111.9,0.001]
[1767982169228,0.01601948,3112.4,3111.9,0.001]
[1767982169630,1.23577968,3112.6,3111.9,0.95471158]
[1767982169631,0.01601948,3112.6,3111.9,0.95471158]
[1767982170204,4.19654959,3112.6,3111.9,0.001]
[1767982170405,0.01601948,3112.4,3111.9,0.001]
[1767982171945,0.01401949,3112.4,3111.9,0.001]
[1767982172234,3.22698154,3112.4,3111.9,0.001]
[1767982172629,0.01401949,3112.4,3111.9,0.001]
[1767982173000,0.01401949,3112.4,3112.2,0.001]
[1767982173206,0.002,3112.3,3112.2,0.001]
[1767982173536,0.995818,3112.3,3112.2,0.001]
[1767982174105,0.002,3112.3,3112.2,0.001]
[1767982175207,3.19010146,3112.7,3112.2,0.001]
[1767982175538,3.19010146,3112.7,3112.3,0.00080192]
[1767982175935,4.22324547,3112.8,3112.3,0.00080192]
[1767982176243,0.993818,3112.7,3112.3,0.00080192]
[1767982177106,0.993818,3112.5,3112.3,0.00080192]
[1767982177508,0.993818,3112.5,3111.9,0.001]
[1767982177509,1.00983748,3112.4,3111.9,0.001]
[1767982179445,1.00983748,3112.4,3111.4,0.92388095]
[1767982179446,0.01601948,3112.2,3111.4,0.92388095]
[1767982179964,0.26801948,3112.2,3111.4,0.92388095]
[1767982180341,4.45975793,3112.5,3111.4,0.92388095]
[1767982180530,1.246818,3112.5,3111.5,0.92307927]
[1767982180730,1.246818,3112.5,3111.6,1.57356289]
[1767982180932,0.253,3112.5,3111.7,0.92307927]
[1767982181434,0.253,3112.5,3111.8,4.1366534]
[1767982182110,0.00080192,3112.7,3111.9,0.92307927]
[1767982182509,0.00080192,3112.7,3111.8,6.42714826]
[1767982182713,1.0106394,3112.7,3111.9,0.64271483]
[1767982183045,1.0106394,3112.7,3111.9,1.5657941]
[1767982183445,1.0106394,3112.7,3112.0,3.2133676]
[1767982183852,0.99461992,3112.7,3112.0,3.2133676]
[1767982185150,0.99461992,3112.7,3112.3,0.001]
[1767982185314,0.00080192,3112.7,3112.3,0.001]
[1767982185515,0.002,3112.4,3112.3,0.001]
[1767982185929,0.99463569,3112.8,3112.3,0.001]
[1767982185930,0.00081769,3112.8,3112.3,0.92488127]
[1767982188147,0.00081769,3112.8,3112.3,4.13783791]
[1767982188448,0.00081769,3112.8,3112.4,0.76039933]
[1767982188650,0.00081769,3112.8,3112.3,3.46785741]
[1767982189450,0.00081769,3112.8,3112.3,3.46785889]
[1767982189747,0.00081769,3112.8,3112.3,4.39256853]
[1767982192582,0.00081769,3112.8,3112.3,1.17951164]
[1767982192963,0.94112904,3112.8,3112.3,0.001802]
[1767982193279,0.94031135,3112.6,3111.9,0.253]
[1767982193447,0.94031135,3112.6,3111.6,0.92470964]
[1767982193653,0.94031135,3112.6,3111.7,0.253]
[1767982193988,0.94031135,3112.6,3111.7,1.17770964]
[1767982194996,4.15306635,3112.6,3111.8,3.21357413]
[1767982195276,4.15306635,3112.6,3111.7,4.39133844]
[1767982195581,0.94031135,3112.6,3111.7,7.60501585]
[1767982195782,0.94031135,3112.6,3111.7,8.36551744]
[1767982196357,4.15306477,3112.6,3111.7,8.36551744]
[1767982196559,4.15306477,3112.6,3111.7,5.15184003]
[1767982196997,0.94031135,3112.5,3111.7,5.15184003]
[1767982197198,0.94031135,3112.5,3111.7,4.22713039]
[1767982197700,0.94031135,3112.5,3111.6,4.13845645]
[1767982197701,0.94031135,3112.4,3111.6,4.13845645]
[1767982197859,0.94031135,3112.4,3111.7,0.253]
[1767982198378,0.94031135,3112.4,3112.0,0.001]
[1767982198559,0.50538668,3112.5,3112.0,0.001]
[1767982199274,0.94031135,3112.6,3112.0,0.001]
[1767982200184,0.900802,3112.7,3112.0,0.92570964]
[1767982201399,0.900802,3112.7,3112.2,0.92470964]
[1767982202217,0.900802,3112.7,3112.3,0.92470964]
[1767982202419,0.00081769,3112.8,3112.5,0.92470964]
[1767982205212,0.00081769,3112.8,3112.5,0.41384214]
[1767982205379,0.00081769,3112.8,3112.3,3.21380952]
[1767982205984,0.00081769,3112.8,3112.3,4.13129719]
[1767982206195,0.00081769,3112.8,3112.3,7.34435505]
[1767982206397,0.00081769,3112.8,3112.4,0.91749069]
[1767982207115,0.99583872,3113.2,3112.4,0.91749069]
[1767982207411,0.99383872,3113.1,3112.4,0.0008185]
[1767982207597,0.99383872,3112.7,3112.0,0.001]
[1767982207806,0.9946408,3112.7,3112.0,0.001]
[1767982207978,4.2065869,3112.6,3112.0,0.001]
[1767982208374,0.99383872,3112.5,3112.0,0.001]
[1767982209617,0.99583872,3112.5,3112.0,0.001]
[1767982209807,0.99583872,3112.5,3111.4,0.00080168]
[1767982210111,0.99383872,3112.3,3111.4,0.00080168]
[1767982210481,1.0098582,3112.3,3111.4,0.00080168]
[1767982210678,0.99383872,3112.1,3111.4,0.00080168]
[1767982210920,0.99383872,3112.0,3111.4,0.00080168]
[1767982212101,0.99383872,3111.8,3111.4,0.00080168]
[1767982212892,0.97607034,3111.8,3111.4,0.00080168]
[1767982214837,0.99383872,3111.7,3111.4,0.00080168]
[1767982216928,4.2075861,3111.7,3111.4,0.00080168]
[1767982217319,0.99383872,3111.5,3110.3,0.91749069]
[1767982217629,0.99383872,3111.5,3110.2,0.00080168]
[1767982217833,0.99383872,3111.2,3110.2,0.00080168]
[1767982218036,0.99383872,3111.0,3110.2,0.00080168]
[1767982218939,0.99383872,3110.8,3110.2,0.00080168]
[1767982219146,0.99383872,3110.6,3110.2,0.00080168]
[1767982219343,0.74388659,3110.7,3109.4,0.253]
[1767982219344,0.99383872,3110.4,3109.4,0.253]
[1767982219544,0.99383872,3110.4,3109.4,3.46900654]
[1767982219955,0.99383872,3110.4,3109.4,3.21600654]
[1767982220265,0.99383872,3110.4,3109.3,0.00081931]
[1767982220266,0.99383872,3110.4,3109.5,3.53759281]
[1767982220465,0.99383872,3110.4,3109.5,0.32168258]
[1767982220772,0.99383872,3110.4,3109.5,3.53763242]
[1767982220958,0.99383872,3110.3,3109.5,3.53763242]
[1767982221567,0.253,3110.4,3109.5,7.67107422]
[1767982221749,1.24683872,3110.4,3109.6,0.76710742]
[1767982222065,0.99383872,3110.4,3109.5,0.32168258]
[1767982222276,0.99383872,3110.0,3109.3,0.00081931]
[1767982222435,0.99383872,3109.8,3108.6,0.91749069]
[1767982222641,0.99464072,3109.6,3108.6,4.13432761]
[1767982222941,1.0098582,3109.3,3108.3,0.25380256]
[1767982223245,0.01601948,3109.1,3108.3,0.25380256]
[1767982223482,1.0098582,3108.9,3108.3,0.25380256]
[1767982223692,1.0098582,3108.9,3108.3,0.00080256]
[1767982223891,0.99383872,3108.9,3108.3,0.00080256]
[1767982224168,1.0098582,3108.8,3108.3,0.00080256]
[1767982224551,1.0098582,3108.6,3108.3,0.00080256]
[1767982224755,0.99383872,3108.6,3108.0,0.002]
[1767982224946,1.0098582,3108.5,3108.0,0.002]
[1767982225343,1.0098582,3108.3,3107.7,0.00080176]
[1767982225660,6.43384362,3108.6,3107.7,0.00080176]
[1767982225661,0.99383872,3108.6,3107.7,0.00080176]
[1767982225839,0.253,3108.5,3107.7,0.00080176]
[1767982226037,0.01601948,3108.6,3107.7,0.00080176]
[1767982226472,0.3662742,3108.6,3107.7,0.00080176]
[1767982226773,0.01601948,3108.6,3107.7,0.00080176]
[1767982226980,0.01601948,3108.6,3107.7,6.43642938]
[1767982227151,0.01601948,3108.6,3107.7,7.35392007]
[1767982227351,0.00080256,3108.7,3107.7,7.35392007]
[1767982227564,0.00080256,3108.7,3107.9,0.91749069]
[1767982228862,0.01601948,3109.5,3108.3,0.91829333]
[1767982229178,3.23203674,3109.5,3108.5,0.91749069]
[1767982229350,3.23203674,3109.5,3108.4,3.21708917]
[1767982229351,0.01601948,3109.3,3108.4,3.21708917]
[1767982229872,0.01601948,3109.3,3108.4,6.43417834]
[1767982230281,0.01601948,3109.3,3108.4,7.35166903]
[1767982230480,0.000802,3109.6,3108.5,1.65273786]
[1767982230775,1.0098582,3109.3,3108.5,0.73524717]
[1767982230947,1.0098582,3109.3,3108.6,3.21688219]
[1767982231151,0.26901948,3109.5,3108.6,6.43376438]
[1767982231382,0.01601948,3109.5,3108.7,0.71690116]
[1767982231547,0.26901948,3109.5,3108.7,0.71690116]
[1767982231979,0.01601948,3109.3,3108.7,0.71690116]
[1767982232278,0.01601948,3109.3,3108.6,3.21688219]
[1767982232712,0.01601948,3109.3,3108.5,3.21694231]
[1767982232881,0.01601948,3109.3,3108.4,3.21704435]
[1767982233278,0.01601948,3109.3,3108.3,0.00080264]
[1767982233279,4.17966852,3109.3,3108.3,0.00080264]
[1767982233472,0.01601948,3109.1,3108.7,0.002]
[1767982233779,0.96345011,3109.1,3108.7,0.002]
[1767982233993,0.96345011,3108.9,3108.4,0.002]
[1767982234287,0.96345011,3108.7,3108.4,0.002]
[1767982234446,0.96345011,3108.6,3107.7,3.21857018]
[1767982234649,0.96345011,3108.6,3107.8,0.32205702]
[1767982235047,0.96345011,3108.6,3107.7,3.21857018]
[1767982235048,0.96345011,3108.6,3107.7,0.00080176]
[1767982235251,0.253,3108.6,3107.7,0.00080176]
[1767982235651,0.96345011,3108.5,3107.7,0.00080176]
[1767982235877,0.01601948,3108.3,3107.7,0.00080176]
[1767982236062,0.96345011,3108.3,3107.7,0.00080176]
[1767982236280,0.94743063,3108.1,3107.7,0.00080176]
[1767982236794,0.01601948,3108.0,3107.7,0.00080176]
[1767982236964,0.96345011,3108.0,3107.2,3.21824565]
[1767982237172,0.253,3107.9,3107.1,3.22117416]
[1767982237385,0.253,3107.9,3107.1,4.06514569]
[1767982237887,0.253,3107.9,3107.1,7.28358088]
[1767982238195,0.253,3107.9,3107.1,4.06514569]
[1767982238498,0.253,3107.9,3107.1,3.22117416]